bitfinex/quotes_BTCUSD_20240827
["timestamp","ask_amount","ask_price","bid_price","bid_amount"]
[1724792675769,0.02607892,62084.0,62083.0,1.43939636]
[1724792675985,0.02607892,62084.0,62083.0,1.52419636]
[1724792676609,0.02607892,62084.0,62083.0,1.51019636]
[1724792676818,0.000822,62084.0,62083.0,1.51019636]
[1724792677069,0.02607658,62084.0,62083.0,1.51019636]
[1724792677475,0.02607658,62084.0,62083.0,1.52419636]
[1724792678789,0.02607658,62084.0,62083.0,1.51019636]
[1724792678998,0.02607658,62084.0,62083.0,1.52419636]
[1724792680470,0.02607658,62084.0,62083.0,1.52509946]
[1724792686523,0.02607658,62084.0,62083.0,1.69519946]
[1724792686733,0.02607658,62084.0,62083.0,1.52509946]
[1724792692896,0.02607658,62084.0,62083.0,1.55117646]
[1724792696190,0.02607658,62084.0,62083.0,1.43955781]
[1724792696399,0.02607658,62084.0,62083.0,1.55117646]
[1724792697775,0.04823348,62098.0,62097.0,0.000252]
[1724792697922,0.000822,62101.0,62100.0,0.483091]
[1724792698148,0.000822,62101.0,62086.0,0.1701]
[1724792698149,0.066,62100.0,62094.0,0.11161865]
[1724792698363,0.0753,62099.0,62098.0,0.161035]
[1724792698567,0.0753,62099.0,62098.0,0.483106]
[1724792699216,0.000822,62101.0,62100.0,0.16103]
[1724792699426,0.000822,62101.0,62100.0,0.98058262]
[1724792701744,0.000822,62101.0,62100.0,0.99458262]
[1724792704762,0.02607171,62101.0,62100.0,0.99458262]
[1724792706504,0.000822,62101.0,62100.0,0.99458262]
[1724792707675,0.000822,62101.0,62100.0,1.31664362]
[1724792708085,0.000822,62101.0,62100.0,1.20502497]
[1724792708328,0.000822,62101.0,62100.0,1.31664362]
[1724792709670,0.02607161,62101.0,62100.0,1.31664362]
[1724792709874,0.10817161,62101.0,62100.0,0.88296397]
[1724792710132,0.10817161,62101.0,62100.0,0.99458262]
[1724792716580,0.17437161,62101.0,62100.0,0.99458262]
[1724792716710,0.17437161,62101.0,62100.0,0.67252162]
[1724792718148,0.17437161,62101.0,62100.0,0.014]
[1724792718442,0.73453417,62101.0,62100.0,0.014]
[1724792718783,0.98425961,62101.0,62100.0,0.014]
[1724792719124,1.08070035,62101.0,62100.0,0.014]
[1724792720445,0.12726035,62101.0,62094.0,0.0009031]
[1724792720655,0.1425,62096.0,62094.0,0.0009031]
[1724792720873,0.0763,62095.0,62094.0,0.0009031]
[1724792721084,0.1425,62095.0,62094.0,0.0009031]
[1724792721678,0.303543,62095.0,62094.0,0.0009031]
[1724792722103,0.72507076,62095.0,62094.0,0.0149031]
[1724792723403,0.72507076,62095.0,62094.0,0.0009031]
[1724792723607,0.72507076,62095.0,62094.0,0.0149031]
[1724792724012,0.62863002,62095.0,62094.0,0.0149031]
[1724792724230,0.62863002,62095.0,62094.0,0.0009031]
[1724792724438,0.72506618,62095.0,62094.0,0.0149031]
[1724792725572,0.95546502,62095.0,62094.0,0.0149031]
[1724792725799,1.27755202,62095.0,62094.0,0.0149031]
[1724792726425,1.27755202,62095.0,62094.0,0.0009031]
[1724792726868,1.27755202,62095.0,62094.0,0.0149031]
[1724792727292,1.27755202,62095.0,62094.0,0.0009031]
[1724792727687,1.27755202,62095.0,62094.0,0.0079031]
[1724792728150,1.27755202,62095.0,62094.0,0.0009031]
[1724792728301,1.4220955,62095.0,62094.0,0.0069031]
[1724792730127,1.53371415,62095.0,62094.0,0.0069031]
[1724792731385,1.38917067,62095.0,62094.0,0.0069031]
[1724792733448,1.27755202,62095.0,62094.0,0.0069031]
[1724792736355,1.39788105,62095.0,62094.0,0.0069031]
[1724792736568,1.5094997,62095.0,62094.0,0.0069031]
[1724792739553,1.50945631,62095.0,62094.0,0.0069031]
[1724792741504,1.51027731,62095.0,62094.0,0.0069031]
[1724792742181,1.38999167,62095.0,62094.0,0.0069031]
[1724792743987,1.93236431,62095.0,62094.0,0.0069031]
[1724792744400,1.81207867,62095.0,62094.0,0.0069031]
[1724792744969,1.81207867,62095.0,62094.0,0.0009031]
[1724792745176,1.81207867,62095.0,62094.0,0.0029031]
[1724792745536,1.81207867,62095.0,62094.0,0.0009031]
[1724792745946,1.81207867,62095.0,62094.0,0.0059031]
[1724792746575,1.81207867,62095.0,62094.0,0.0009031]
[1724792747202,1.81207867,62095.0,62094.0,0.0039031]
[1724792747429,2.29520867,62095.0,62094.0,0.0039031]
[1724792753398,2.63479582,62095.0,62094.0,0.0039031]
[1724792754034,3.14484827,62095.0,62094.0,0.0039031]
[1724792754250,3.14484827,62095.0,62094.0,1e-07]
[1724792755896,1.996096,62084.0,62083.0,0.0009031]
[1724792756118,2.69084465,62084.0,62083.0,0.0009031]
[1724792756734,2.71610838,62084.0,62083.0,0.0009031]
[1724792757496,2.87607383,62084.0,62083.0,0.0009031]
[1724792757930,2.87607383,62084.0,62083.0,0.0029031]
[1724792759329,2.71610838,62084.0,62083.0,0.0029031]
[1724792760252,2.71610838,62084.0,62083.0,0.0009031]
[1724792760681,2.71610838,62084.0,62083.0,0.0019031]
[1724792761100,2.71610838,62084.0,62083.0,0.0009031]
[1724792761537,2.36610838,62084.0,62083.0,0.0009031]
[1724792761753,2.25448973,62084.0,62083.0,0.0009031]
[1724792761960,2.36610838,62084.0,62083.0,0.0009031]
[1724792763910,2.7371562,62084.0,62083.0,0.0009031]
[1724792767474,2.88246065,62084.0,62083.0,0.0009031]
[1724792768140,1.79164573,62084.0,62083.0,0.0009031]
[1724792768833,0.80541,62080.0,62079.0,0.0480031]
[1724792769036,0.90541,62080.0,62079.0,0.0480031]
[1724792769506,1.227574,62080.0,62079.0,0.0480031]
[1724792770384,1.32491117,62080.0,62079.0,0.0610031]
[1724792771059,1.32491117,62080.0,62079.0,0.0750031]
[1724792771293,1.32591117,62080.0,62079.0,0.0750031]
[1724792771506,1.229574,62080.0,62079.0,0.0750031]
[1724792771722,1.234322,62080.0,62079.0,0.0750031]
[1724792771930,1.35474347,62080.0,62079.0,0.0750031]
[1724792772622,1.35474347,62080.0,62079.0,0.027]
[1724792772828,2.27808145,62080.0,62079.0,0.027]
[1724792773032,2.48443868,62080.0,62079.0,0.027]
[1724792773441,2.33998145,62080.0,62079.0,0.027]
[1724792773863,1.449787,62078.0,62076.0,0.0009431]
[1724792774064,2.04453565,62078.0,62076.0,0.0009431]
[1724792774312,2.2092491,62078.0,62076.0,0.0009431]
[1724792774531,3.1218241,62078.0,62076.0,0.0009431]
[1724792775845,3.1228241,62078.0,62077.0,0.0189031]
[1724792776048,3.01120545,62078.0,62077.0,0.0089031]
[1724792776211,3.01020545,62078.0,62077.0,0.0009031]
[1724792776412,3.01020545,62078.0,62077.0,0.0079031]
[1724792776616,3.01020545,62078.0,62077.0,0.0139031]
[1724792778447,3.01020545,62078.0,62077.0,0.0079031]
[1724792778687,3.01020545,62078.0,62077.0,0.0009031]
[1724792778879,3.01020545,62078.0,62077.0,0.0079031]
[1724792780712,2.85024,62078.0,62077.0,0.0079031]
[1724792782239,2.85024,62078.0,62076.0,0.0009431]
[1724792782240,2.153918,62077.0,62076.0,2e-07]
[1724792782464,2.908048,62077.0,62076.0,2e-07]
[1724792782894,2.93331769,62077.0,62076.0,2e-07]
[1724792783329,3.09328314,62077.0,62076.0,0.0040002]
[1724792783537,3.09728314,62077.0,62076.0,0.0040002]
[1724792783965,2.93731769,62077.0,62076.0,0.0040002]
[1724792784926,2.93331769,62077.0,62076.0,0.0040002]
[1724792785106,2.93331769,62077.0,62076.0,2e-07]
[1724792785262,2.95031769,62077.0,62076.0,0.0020002]
[1724792787804,3.11028314,62077.0,62076.0,0.0020002]
[1724792794913,3.11028314,62077.0,62054.0,0.145]
[1724792794914,0.054748,62055.0,62054.0,0.145]
[1724792795153,1.14185487,62055.0,62054.0,0.145]
[1724792795353,1.988201,62055.0,62054.0,0.145]
[1724792795551,2.01347326,62055.0,62054.0,0.145]
[1724792796193,2.01447326,62055.0,62054.0,0.159]
[1724792796858,2.01547326,62055.0,62054.0,0.167]
[1724792798309,2.13599029,62055.0,62054.0,0.167]
[1724792798510,2.01547326,62055.0,62054.0,0.167]
[1724792798766,2.13599388,62055.0,62054.0,0.167]
[1724792799191,2.01547326,62055.0,62054.0,0.167]
[1724792799411,2.11547326,62055.0,62054.0,0.167]
[1724792800154,2.1344081,62055.0,62054.0,0.167]
[1724792802135,2.22709595,62055.0,62054.0,0.167]
[1724792803505,2.22709595,62055.0,62054.0,0.022]
[1724792807291,2.22709595,62055.0,62054.0,0.008]
[1724792807292,2.22609595,62055.0,62054.0,0.008]
[1724792808321,2.3707327,62055.0,62054.0,0.008]
[1724792808533,2.3707327,62055.0,62054.0,0.018]
[1724792808534,2.3717327,62055.0,62054.0,0.018]
[1724792808947,2.53169815,62055.0,62054.0,0.018]
[1724792809246,2.8564554,62055.0,62054.0,0.018]
[1724792809412,3.1787494,62055.0,62054.0,0.018]
[1724792810062,3.2017494,62055.0,62054.0,0.018]
[1724792810509,3.20154409,62055.0,62054.0,0.018]
[1724792810728,3.20054409,62055.0,62054.0,0.01]
[1724792810939,3.20054409,62055.0,62051.0,0.0009431]
[1724792810940,1.78224769,62052.0,62051.0,0.0009431]
[1724792811156,2.61910038,62052.0,62051.0,0.0009431]
[1724792811388,2.66427593,62052.0,62051.0,0.0009431]
[1724792811821,2.98658593,62052.0,62051.0,0.0009431]
[1724792812023,3.15419379,62052.0,62051.0,0.0009431]
[1724792812230,3.15419379,62052.0,62051.0,0.0019431]
[1724792812439,3.15419379,62052.0,62051.0,0.0049431]
[1724792812642,3.15419379,62052.0,62051.0,0.0019431]
[1724792812874,3.15419379,62052.0,62050.0,2e-07]
[1724792812875,2.59658969,62051.0,62050.0,2e-07]
[1724792813110,3.36268514,62051.0,62050.0,2e-07]
[1724792815242,3.36668514,62051.0,62050.0,2e-07]
[1724792815493,1.85540569,62032.0,62025.0,0.139]
[1724792815691,2.43853569,62032.0,62025.0,0.139]
[1724792815894,2.59850114,62032.0,62025.0,0.139]
[1724792816095,2.62378383,62032.0,62025.0,0.139]
[1724792817540,2.62378383,62032.0,62031.0,0.013031]
[1724792817750,2.62478383,62032.0,62031.0,0.013031]
[1724792818008,2.46481838,62032.0,62031.0,0.013031]
[1724792818214,2.46581838,62032.0,62031.0,0.021031]
[1724792819046,2.93523238,62032.0,62031.0,0.021031]
[1724792820091,2.47081838,62032.0,62031.0,0.021031]
[1724792820294,2.48973381,62032.0,62031.0,0.017031]
[1724792820515,2.64969926,62032.0,62031.0,0.018031]
[1724792821137,2.64869926,62032.0,62031.0,0.010031]
[1724792821342,2.64869926,62032.0,62031.0,0.013031]
[1724792821956,2.48873381,62032.0,62031.0,0.089231]
[1724792822157,2.63073381,62032.0,62031.0,0.013031]
[1724792825614,2.14140438,62032.0,62031.0,0.013031]
[1724792825815,2.28589463,62032.0,62031.0,0.013031]
[1724792826022,2.30136983,62032.0,62031.0,0.013031]
[1724792826225,2.62378383,62032.0,62031.0,0.013031]
[1724792827603,2.76824416,62032.0,62031.0,0.013031]
[1724792827808,1.178613,62023.0,62022.0,0.0009031]
[1724792828009,1.73661537,62023.0,62022.0,0.0009031]
[1724792828634,1.71374593,62023.0,62022.0,0.0009031]
[1724792829042,1.76289722,62023.0,62022.0,0.0079031]
[1724792829241,2.08535822,62023.0,62022.0,0.0079031]
[1724792829433,2.13720693,62023.0,62022.0,0.0079031]
[1724792829672,2.18534185,62023.0,62022.0,0.0079031]
[1724792830101,2.18634185,62023.0,62022.0,0.0119031]
[1724792830319,1.86388085,62023.0,62022.0,0.0119031]
[1724792830779,1.81574593,62023.0,62022.0,0.0119031]
[1724792832254,2.41743748,62023.0,62022.0,0.0119031]
[1724792832468,1.45563969,62022.0,62021.0,0.009042]
[1724792832610,2.27087646,62022.0,62021.0,0.009042]
[1724792832811,1.451119,62021.0,62020.0,0.109031]
[1724792833024,2.10638782,62021.0,62020.0,0.109031]
[1724792833251,2.034249,62021.0,62020.0,0.109031]
[1724792833447,2.19421445,62021.0,62020.0,0.109031]
[1724792834465,2.26633304,62021.0,62020.0,0.109031]
[1724792834686,2.19421445,62021.0,62020.0,0.112031]
[1724792835511,2.19521445,62021.0,62020.0,0.112031]
[1724792835733,2.24327482,62021.0,62020.0,0.112031]
[1724792836348,2.24781751,62021.0,62020.0,0.112031]
[1724792837449,2.34015714,62021.0,62020.0,0.112031]
[1724792837673,2.41222243,62021.0,62020.0,0.112031]
[1724792837811,2.34015714,62021.0,62020.0,0.112031]
[1724792838216,2.46027161,62021.0,62020.0,0.112031]
[1724792838417,2.66762814,62021.0,62020.0,0.112031]
[1724792839556,2.66762814,62021.0,62020.0,0.109031]
[1724792839733,2.67162814,62021.0,62020.0,0.109031]
[1724792840144,2.67062814,62021.0,62020.0,0.109031]
[1724792840546,2.67362814,62021.0,62020.0,0.109031]
[1724792844288,2.78540515,62021.0,62020.0,0.109031]
[1724792847436,2.80840515,62021.0,62020.0,0.109031]
[1724792847855,2.80840515,62021.0,62020.0,0.10522636]
[1724792848910,2.80840515,62021.0,62020.0,0.10526636]
[1724792850326,3.27501352,62021.0,62020.0,0.10526636]
[1724792851168,3.13087615,62021.0,62020.0,0.10526636]
[1724792856717,3.13087615,62021.0,62020.0,0.20526636]
[1724792857328,3.13087615,62021.0,62020.0,0.10526636]
[1724792858419,2.80840515,62021.0,62020.0,0.10526636]
[1724792860116,2.80922715,62021.0,62020.0,0.10526636]
[1724792864465,2.80922715,62021.0,62011.0,0.0004]
[1724792864466,0.40954269,62015.0,62011.0,0.0004]
[1724792864681,1.79170292,62015.0,62011.0,0.0004]
[1724792864910,2.6964087,62015.0,62011.0,0.0004]
[1724792865129,3.0419107,62015.0,62011.0,0.0004]
[1724792865360,3.06720425,62015.0,62011.0,0.0004]
[1724792865586,3.2271697,62015.0,62011.0,0.0004]
[1724792866667,3.2371697,62015.0,62011.0,0.0004]
[1724792867102,3.25683434,62015.0,62011.0,0.0004]
[1724792867297,3.57933634,62015.0,62011.0,0.0004]
[1724792867727,3.58533634,62015.0,62011.0,0.0004]
[1724792867937,3.57933634,62015.0,62011.0,0.0004]
[1724792868353,3.58933634,62015.0,62011.0,0.0004]
[1724792868573,3.57933634,62015.0,62011.0,0.0004]
[1724792869009,3.59033634,62015.0,62011.0,0.0004]
[1724792870323,3.59033634,62015.0,62014.0,1e-06]
[1724792871156,3.58033634,62015.0,62014.0,1e-06]
[1724792871605,3.58133634,62015.0,62014.0,1e-06]
[1724792872018,3.59533634,62015.0,62014.0,1e-06]
[1724792872440,3.21933634,62015.0,62014.0,4.1e-05]
[1724792872847,3.23333634,62015.0,62014.0,4.1e-05]
[1724792873345,3.24733634,62015.0,62014.0,4.1e-05]
[1724792874631,3.29667089,62015.0,62014.0,4.1e-05]
[1724792875316,3.45946506,62015.0,62014.0,4.1e-05]
[1724792875526,3.44546506,62015.0,62014.0,4.1e-05]
[1724792875754,3.28267089,62015.0,62014.0,4.1e-05]
[1724792877028,3.26867089,62015.0,62014.0,4.1e-05]
[1724792877231,3.44263634,62015.0,62014.0,4.1e-05]
[1724792877901,3.45663634,62015.0,62014.0,4.1e-05]
[1724792878120,3.44263634,62015.0,62014.0,4.1e-05]
[1724792878559,3.45663634,62015.0,62014.0,4.1e-05]
[1724792884252,3.69447916,62015.0,62014.0,4.1e-05]
[1724792884475,3.45663634,62015.0,62014.0,4.1e-05]
[1724792884694,3.45745834,62015.0,62014.0,4.1e-05]
[1724792886212,3.29749289,62015.0,62014.0,4.1e-05]
[1724792886707,3.27449289,62015.0,62014.0,4.1e-05]
[1724792888250,3.35659289,62015.0,62014.0,4.1e-05]
[1724792888851,3.42289289,62015.0,62014.0,4.1e-05]
[1724792889054,3.03409089,62015.0,62014.0,4.1e-05]
[1724792889280,2.95199089,62015.0,62014.0,4.1e-05]
[1724792890538,2.83521388,62015.0,62014.0,0.061641]
[1724792890752,2.94699089,62015.0,62014.0,0.061641]
[1724792890950,3.10695634,62015.0,62014.0,0.061641]
[1724792891377,3.07895634,62015.0,62014.0,0.061641]
[1724792891598,3.09295634,62015.0,62014.0,0.061641]
[1724792891812,3.10695634,62015.0,62014.0,0.061641]
[1724792892012,3.09295634,62015.0,62014.0,0.061641]
[1724792892220,3.08495634,62015.0,62014.0,0.061641]
[1724792892657,3.09195634,62015.0,62014.0,0.061641]
[1724792892863,2.93199089,62015.0,62014.0,0.061641]
[1724792893484,2.60948889,62015.0,62014.0,0.061641]
[1724792894806,0.52224555,62015.0,62014.0,0.25371801]
[1724792895014,0.52224555,62015.0,62014.0,0.41497101]
[1724792895224,0.61897911,62015.0,62014.0,0.41497101]
[1724792895458,0.52224555,62015.0,62014.0,0.41497101]
[1724792895677,0.51524555,62015.0,62014.0,0.52281981]
[1724792895909,0.51524555,62015.0,62014.0,0.36456681]
[1724792896128,0.51024555,62015.0,62014.0,0.2527898]
[1724792896340,0.51124555,62015.0,62014.0,0.144941]
[1724792897205,0.51124555,62015.0,62014.0,0.141941]
[1724792897206,0.51024555,62015.0,62014.0,0.141941]
[1724792897643,0.51124555,62015.0,62014.0,0.144941]
[1724792898066,0.51024555,62015.0,62014.0,0.303194]
[1724792898252,0.51124555,62015.0,62014.0,0.307194]
[1724792898488,0.51024555,62015.0,62014.0,0.307194]
[1724792898699,0.51124555,62015.0,62014.0,0.308194]
[1724792899120,0.51124555,62015.0,62014.0,0.146941]
[1724792899528,0.51124555,62015.0,62014.0,0.23978218]
[1724792902226,0.51124555,62015.0,62014.0,0.146941]
[1724792905428,0.67249655,62015.0,62014.0,0.146941]
[1724792905646,0.99499855,62015.0,62014.0,0.146941]
[1724792906387,0.67249655,62015.0,62014.0,0.146941]
[1724792910125,0.67049655,62015.0,62014.0,0.141941]
[1724792910264,0.67149655,62015.0,62014.0,0.141941]
[1724792910472,0.67149655,62015.0,62014.0,0.144941]
[1724792910473,0.67249655,62015.0,62014.0,0.144941]
[1724792910722,0.51124555,62015.0,62014.0,0.144941]
[1724792912751,0.51124555,62015.0,62014.0,0.2096605]
[1724792913083,0.51124555,62015.0,62014.0,0.3709135]
[1724792914350,0.51124555,62015.0,62014.0,1.3384345]
[1724792915555,0.51024555,62015.0,62014.0,1.3384345]
[1724792915989,0.51124555,62015.0,62014.0,1.3384345]
[1724792916198,0.50924555,62015.0,62014.0,1.3354345]
[1724792916429,0.51024555,62015.0,62014.0,1.3494345]
[1724792916639,0.51124555,62015.0,62014.0,1.3494345]
[1724792917090,0.51024555,62015.0,62014.0,1.3354345]
[1724792917303,0.51124555,62015.0,62014.0,1.3494345]
[1724792922000,0.485952,62015.0,62014.0,1.3494345]
[1724792922202,0.51123485,62015.0,62014.0,1.46110948]
[1724792929374,0.485952,62015.0,62014.0,1.46110948]
[1724792929809,0.51123519,62015.0,62014.0,1.46110948]
[1724792932721,0.51123519,62015.0,62014.0,1.13860248]
[1724792934370,0.51123519,62015.0,62014.0,1.07388298]
[1724792943390,0.51123519,62015.0,62014.0,1.091266]
[1724792946010,0.51123519,62015.0,62014.0,1.07388298]
[1724792946449,0.51123519,62015.0,62014.0,1.09126518]
[1724792953866,0.51123519,62015.0,62014.0,0.94936518]
[1724792957243,0.51123519,62015.0,62014.0,1.09930293]
[1724792957478,0.51123519,62015.0,62014.0,1.08192073]
[1724792957663,0.51123519,62015.0,62014.0,1.0993034]
[1724792961222,0.51123519,62015.0,62014.0,0.94936565]
[1724792965276,0.51123519,62015.0,62014.0,1.27187265]
[1724792965748,0.51123519,62015.0,62014.0,1.29879172]
[1724792965943,0.51123519,62015.0,62014.0,1.2987904]
[1724792966361,0.51023519,62015.0,62014.0,1.2987904]
[1724792966775,0.51023519,62015.0,62014.0,1.45324956]
[1724792966776,0.50923519,62015.0,62014.0,1.45324956]
[1724792966998,0.50923519,62015.0,62014.0,1.40894914]
[1724792967219,0.483952,62015.0,62014.0,1.45324883]
[1724792967622,0.483952,62015.0,62014.0,1.43924883]
[1724792967623,0.50923527,62015.0,62014.0,1.43924883]
[1724792967826,0.50923527,62015.0,62014.0,1.45324883]
[1724792968035,0.50923527,62015.0,62014.0,1.46724883]
[1724792968281,0.50923527,62015.0,62014.0,1.96031314]
[1724792968498,0.50923527,62015.0,62014.0,1.96031259]
[1724792968707,0.50923527,62015.0,62014.0,1.94293148]
[1724792968911,0.50923527,62015.0,62014.0,1.96031218]
[1724792972396,0.40984071,62015.0,62014.0,1.96031218]
[1724792972796,0.02610527,62015.0,62014.0,1.96031218]
[1724792973388,0.000822,62017.0,62016.0,1.45169331]
[1724792973593,0.000822,62017.0,62016.0,1.75939036]
[1724792973970,0.0261021,62017.0,62016.0,1.75939036]
[1724792974570,0.0261021,62017.0,62016.0,1.77339036]
[1724792975105,0.0261021,62017.0,62016.0,1.78739036]
[1724792975304,0.0261021,62017.0,62016.0,1.94684952]
[1724792975706,0.000822,62017.0,62016.0,1.94684952]
[1724792976076,0.000822,62017.0,62016.0,1.93284952]
[1724792976312,0.000822,62017.0,62016.0,1.91884952]
[1724792976545,0.000822,62017.0,62016.0,1.94684952]
[1724792976948,0.000822,62017.0,62016.0,1.93284952]
[1724792977148,0.000822,62017.0,62016.0,1.94684952]
[1724792978974,0.000822,62017.0,62016.0,1.94684807]
[1724792979193,0.000822,62017.0,62016.0,1.90255247]
[1724792979399,0.000822,62017.0,62016.0,1.94684806]
[1724792986684,0.000822,62017.0,62016.0,1.90255247]
[1724792986813,0.000822,62017.0,62016.0,1.946848]
[1724792990389,0.000822,62017.0,62016.0,1.90255247]
[1724792990590,0.000822,62017.0,62016.0,1.946848]
[1724792990936,0.0261017,62017.0,62016.0,1.946848]
[1724792996772,0.0261017,62017.0,62016.0,1.91812298]
[1724792997393,0.0261017,62017.0,62016.0,1.87382745]
[1724792999639,0.0261017,62017.0,62016.0,1.91812438]
[1724793002922,0.0261017,62017.0,62016.0,1.87382745]
[1724793003146,0.0261017,62017.0,62016.0,1.91812438]
[1724793003729,0.0261017,62017.0,62016.0,1.90074437]
[1724793004140,0.0261017,62017.0,62016.0,1.87382745]
[1724793004278,0.0261017,62017.0,62016.0,1.90074437]
[1724793005200,0.0261017,62017.0,62016.0,1.87382745]
[1724793005378,0.0261017,62017.0,62016.0,1.90074437]
[1724793006155,0.0261017,62017.0,62016.0,1.87382745]
[1724793006359,0.0261017,62017.0,62016.0,1.90074436]
[1724793007543,0.000822,62021.0,62020.0,1.45159931]
[1724793007706,0.000822,62021.0,62020.0,1.47459931]
[1724793007911,0.000822,62021.0,62020.0,1.50151622]
[1724793008701,0.000822,62021.0,62020.0,1.51551622]
[1724793009670,0.000822,62021.0,62020.0,1.52951622]
[1724793009969,0.000822,62021.0,62020.0,1.68897538]
[1724793010837,0.02610203,62021.0,62020.0,1.68897538]
[1724793011621,0.000822,62021.0,62020.0,1.68897538]
[1724793012619,0.000822,62021.0,62020.0,1.66205847]
[1724793012825,0.000822,62021.0,62020.0,1.70899306]
[1724793013750,0.000822,62021.0,62020.0,1.70899245]
[1724793014713,0.000822,62021.0,62020.0,1.68207657]
[1724793014919,0.000822,62021.0,62020.0,1.70899225]
[1724793020008,0.000822,62021.0,62020.0,1.77363625]
[1724793021239,0.000822,62021.0,62020.0,1.8220954]
[1724793021708,0.02610152,62021.0,62020.0,1.8220954]
[1724793022335,0.02610152,62021.0,62020.0,1.77363625]
[1724793024093,0.02610152,62021.0,62020.0,1.77363527]
[1724793025435,0.02610152,62021.0,62020.0,1.87363527]
[1724793031343,0.02610152,62021.0,62020.0,1.8736352]
[1724793032641,0.02610152,62021.0,62020.0,1.8596352]
[1724793033271,0.02610152,62021.0,62020.0,1.8736352]
[1724793033489,0.02610152,62021.0,62020.0,1.8456352]
[1724793033934,0.02610152,62021.0,62020.0,1.8736352]
[1724793035231,0.16360152,62021.0,62020.0,1.8736352]
[1724793036917,0.16360152,62021.0,62020.0,1.98531018]
[1724793037088,0.16360152,62021.0,62020.0,1.96529208]
[1724793037315,0.16360152,62021.0,62020.0,1.64272758]
[1724793045743,0.16360152,62021.0,62020.0,1.61581295]
[1724793045925,0.16360152,62021.0,62020.0,1.64272857]
[1724793046977,0.64731152,62021.0,62020.0,1.64272857]
[1724793053199,0.64731152,62021.0,62020.0,1.50413797]
[1724793053384,0.64731152,62021.0,62020.0,1.64272917]
[1724793053926,0.64731152,62021.0,62020.0,0.05491622]
[1724793054143,0.64731152,62021.0,62020.0,0.028]
[1724793054548,0.69563822,62021.0,62020.0,0.028]
[1724793054978,0.85687322,62021.0,62020.0,0.014]
[1724793055190,0.64731152,62021.0,62020.0,0.014]
[1724793055444,0.64731152,62021.0,62020.0,0.028]
[1724793056101,0.64731152,62021.0,62020.0,0.014]
[1724793056316,0.64731152,62021.0,62020.0,0.028]
[1724793058498,0.80854652,62021.0,62020.0,0.028]
[1724793058671,0.80854652,62021.0,62020.0,0.0289031]
[1724793062041,0.64731152,62021.0,62020.0,0.0289031]
[1724793062247,0.80854652,62021.0,62020.0,0.0289031]
[1724793065848,0.64731152,62021.0,62020.0,0.0289031]
[1724793066681,0.80854652,62021.0,62020.0,0.0289031]
[1724793068150,0.64731152,62021.0,62020.0,0.0289031]
[1724793068358,1.82883922,62021.0,62020.0,0.0289031]
[1724793068571,1.78059071,62021.0,62020.0,0.0289031]
[1724793068775,1.87708773,62021.0,62020.0,0.0289031]
[1724793069184,1.87708773,62021.0,62020.0,0.0009031]
[1724793069602,1.87708773,62021.0,62020.0,0.0289031]
[1724793070226,1.87708773,62021.0,62020.0,0.0149031]
[1724793070473,1.78059071,62021.0,62020.0,0.0289031]
[1724793070655,1.87695784,62021.0,62020.0,0.0289031]
[1724793070954,1.87695784,62021.0,62020.0,0.0149031]
[1724793071156,1.87695784,62021.0,62020.0,0.0289031]
[1724793071581,1.78059071,62021.0,62020.0,0.0289031]
[1724793072237,2.10306171,62021.0,62020.0,0.0289031]
[1724793072482,2.76302716,62021.0,62020.0,0.0289031]
[1724793072680,3.19717314,62021.0,62020.0,0.0289031]
[1724793073244,3.21577935,62021.0,62020.0,0.0149031]
[1724793073450,3.0558139,62021.0,62020.0,0.0169031]
[1724793073767,1.60122219,62018.0,62017.0,0.0009031]
[1724793073927,2.29660717,62018.0,62017.0,0.0009031]
[1724793074575,2.44079289,62018.0,62017.0,0.0009031]
[1724793075603,2.44079019,62018.0,62017.0,0.0049031]
[1724793075831,2.29660717,62018.0,62017.0,0.0049031]
[1724793076086,2.50741919,62018.0,62017.0,0.0049031]
[1724793076306,2.61909417,62018.0,62017.0,0.0109031]
[1724793087561,2.73898211,62018.0,62017.0,0.0109031]
[1724793087765,2.62730713,62018.0,62017.0,0.0109031]
[1724793087991,2.73898211,62018.0,62017.0,0.0109031]
[1724793088609,2.73898211,62018.0,62017.0,0.0009031]
[1724793088819,2.73998211,62018.0,62017.0,0.0009031]
[1724793090468,2.90394756,62018.0,62017.0,0.0009031]
[1724793091620,2.78405962,62018.0,62017.0,0.0009031]
[1724793091825,2.90394756,62018.0,62017.0,0.0009031]
[1724793093142,2.63230713,62018.0,62017.0,0.0009031]
[1724793093356,2.18993219,62018.0,62017.0,0.0009031]
[1724793093595,2.30160717,62018.0,62017.0,0.0009031]
[1724793093797,2.34958004,62018.0,62017.0,0.0009031]
[1724793094708,2.34958677,62018.0,62017.0,0.0009031]
[1724793095342,2.30160717,62018.0,62017.0,0.0009031]
[1724793095965,2.46157262,62018.0,62017.0,0.0009031]
[1724793096399,2.55753183,62018.0,62017.0,0.0009031]
[1724793096666,2.58152164,62018.0,62017.0,0.0009031]
[1724793096871,2.46157262,62018.0,62017.0,0.0009031]
[1724793097292,2.58152164,62018.0,62017.0,0.0009031]
[1724793098466,2.78405962,62018.0,62017.0,0.0009031]
[1724793103506,1.91626419,62016.0,62014.0,0.0009031]
[1724793103741,2.64417185,62016.0,62014.0,0.0009031]
[1724793103945,2.49997419,62016.0,62014.0,0.0009031]
[1724793104115,2.52293419,62016.0,62014.0,0.0009031]
[1724793105894,2.52493419,62016.0,62015.0,0.0019031]
[1724793106739,3.01239664,62016.0,62015.0,0.0019031]
[1724793106952,2.85243119,62016.0,62015.0,0.0019031]
[1724793108266,3.01465156,62016.0,62015.0,0.0019031]
[1724793108959,3.01474976,62016.0,62015.0,0.0019031]
[1724793109643,2.85243119,62016.0,62015.0,0.0019031]
[1724793110052,3.01239664,62016.0,62015.0,0.0019031]
[1724793110704,2.85243119,62016.0,62015.0,0.0019031]
[1724793116613,3.08964195,62016.0,62015.0,0.0019031]
[1724793117707,2.85243119,62016.0,62015.0,0.0019031]
[1724793120728,2.85325319,62016.0,62015.0,0.0019031]
[1724793122038,2.52575619,62016.0,62015.0,0.0019031]
[1724793122259,2.63743117,62016.0,62015.0,0.0019031]
[1724793123336,2.79739662,62016.0,62015.0,0.0019031]
[1724793124209,2.52575619,62016.0,62015.0,0.0019031]
[1724793124429,2.63743117,62016.0,62015.0,0.0019031]
[1724793126866,2.87514026,62016.0,62015.0,0.0019031]
[1724793127057,2.63743117,62016.0,62015.0,0.0019031]
[1724793127283,2.87513455,62016.0,62015.0,0.0019031]
[1724793127537,2.63743117,62016.0,62015.0,0.0019031]
[1724793127802,2.87514404,62016.0,62015.0,0.0019031]
[1724793127996,2.67453998,62016.0,62015.0,0.0019031]
[1724793128253,2.91226103,62016.0,62015.0,0.0019031]
[1724793128923,2.91226278,62016.0,62015.0,0.0019031]
[1724793129351,2.67453998,62016.0,62015.0,0.0019031]